Workbook

Sheet форма 2п исправл
I1: Приложение к постановлению Администрации
I2: муниципального образования
I3: Кинзельский сельсовет
I4: Красногвардейского района
I5: Оренбургской области
I6: от 12.11.2021 г. № 108-п
C8: Основные показатели, представляемые для разработки прогноза социально-экономического развития
C9: на 2022-2024 гг.
C10: муниципальное образование Кинзельский сельсовет Красногвардейского района Оренбургской области
C12: Показатели | D12: Единица измерения | E12: отчет | F12: отчет | G12: оценка показателя | H12: прогноз
E13: 2019 | F13: 2020 | G13: 2021 | H13: 2022 | J13: 2023 | L13: 2024
H14: консервативный | I14: базовый | J14: консервативный | K14: базовый | L14: консервативный | M14: базовый
H15: 1 вариант | I15: 2 вариант | J15: 1 вариант | K15: 2 вариант | L15: 1 вариант | M15: 2 вариант
C16: 1. Население
C17: Численность населения (в среднегодовом исчислении) | D17: тыс.чел. | E17: 0.917 | F17: 0.899
C18: Численность населения (на 1 января года) | D18: тыс.чел. | E18: 0.927 | F18: 0.907 | G18: 0.891
C19: 2. Промышленное производство
C20: Объем отгруженных товаров собственного производства, выполненных работ и услуг собственными силами | D20: млн. руб | E20: 0.92 | F20: 0.95 | G20: 1.06 | H20: 1.09 | I20: 1.09 | J20: 1.15 | K20: 1.15 | L20: 1.21 | M20: 1.22
C21: Индекс промышленного производства | D21: % к предыдущему году в сопоставимых ценах | E21: 93.88 | F21: =F20/E20/F22*10000 -> 110.2037028 | G21: =G20/F20/G22*10000 -> 99.98113563 | H21: =H20/G20/H22*10000 -> 100.3221353 | I21: =I20/G20/I22*10000 -> 100.2243554 | J21: =J20/H20/J22*10000 -> 101.4467184 | K21: =K20/I20/K22*10000 -> 101.5443572 | L21: =L20/J20/L22*10000 -> 101.1705686 | M21: =M20/K20/M22*10000 -> 101.9086998
C22: Индекс-дефлятор продукции промышленного производства | D22: % к предыдущему году | E22: 102.1 | F22: 93.7 | G22: 111.6 | H22: 102.5 | I22: 102.6 | J22: 104 | K22: 103.9 | L22: 104 | M22: 104.1
C23: 3. Сельское хозяйство
C24: Продукция сельского хозяйства | D24: млн. руб. | E24: 133.97 | F24: 171.03 | G24: 168.54 | H24: 175.9 | I24: 178.8 | J24: 187.32 | K24: 193.66 | L24: 200.29 | M24: 210.19
C25: Индекс производства продукции сельского хозяйства | D25: % к предыдущему году в сопоставимых ценах | E25: 86.2 | F25: =F24/E24/F26*10000 -> 122.9301007 | G25: =G24/F24/G26*10000 -> 98.38669635 | H25: =H24/G24/H26*10000 -> 101.3271028 | I25: =I24/G24/I26*10000 -> 103.70242 | J25: =J24/H24/J26*10000 -> 103.2903251 | K25: =K24/I24/K26*10000 -> 105.6692312 | L25: =L24/J24/L26*10000 -> 103.3081936 | M25: =M24/K24/M26*10000 -> 105.5793559
C26: Индекс-дефлятор продукции сельского хозяйства в хозяйствах всех категорий | D26: % к предыдущему году | E26: 104.17 | F26: 103.85 | G26: 100.16 | H26: 103 | I26: 102.3 | J26: 103.1 | K26: 102.5 | L26: 103.5 | M26: 102.8
C27: 3.1. Производство важнейших видов продукции в натуральном выражении
C28: Культуры зерновые | D28: тыс. тонн | E28: 1.745 | F28: 7.309 | G28: 4.335 | H28: 4.39 | I28: 4.452 | J28: 4.515 | K28: 4.689 | L28: 4.628 | M28: 4.997
C29: Семена и плоды масличных культур | D29: тыс. тонн | E29: 2.775 | F29: 2.116 | G29: 3.009 | H29: 3.067 | I29: 3.191 | J29: 3.222 | K29: 3.452 | L29: 3.39 | M29: 3.69
C30: в том числе семян подсолнечника | D30: тыс. тонн | E30: 2.775 | F30: 2.116 | G30: 3.009 | H30: 3.067 | I30: 3.191 | J30: 3.222 | K30: 3.452 | L30: 3.39 | M30: 3.69
C31: Картофель | D31: тыс. тонн | E31: 0.147 | F31: 0.145 | G31: 0.161 | H31: 0.161 | I31: 0.162 | J31: 0.163 | K31: 0.167 | L31: 0.17 | M31: 1.8
C32: Овощи | D32: тыс. тонн | E32: 0.097 | F32: 0.093 | G32: 0.079 | H32: 0.093 | I32: 0.093 | J32: 0.095 | K32: 0.099 | L32: 0.1 | M32: 0.111
C33: Скот и птица на убой (в живом весе) | D33: тыс. тонн | E33: 0.195 | F33: 0.186 | G33: 0.186 | H33: 0.186 | I33: 0.187 | J33: 0.187 | K33: 0.188 | L33: 0.187 | M33: 0.189
C34: Молоко | D34: тыс. тонн | E34: 0.757 | F34: 0.85 | G34: 0.85 | H34: 0.85 | I34: 0.851 | J34: 0.851 | K34: 0.854 | L34: 0.852 | M34: 0.0856
C35: Яйца | D35: млн.шт. | E35: 0.776 | F35: 0.757 | G35: 0.757 | H35: 0.757 | I35: 0.758 | J35: 0.758 | K35: 0.759 | L35: 0.759 | M35: 0.76
C36: Масло подсолнечное и его фракции нерафинированные | D36: тыс. тонн
C37: 4. Строительство
C38: Ввод в действие жилых домов | D38: тыс. кв. м. в общей площади
C39: 5. Торговля и услуги населению
C40: Оборот розничной торговли | D40: млн. рублей | E40: 60.13 | F40: 60.39 | G40: 66.57 | H40: 70.76 | I40: 70.9 | J40: 75.21 | K40: 75.58 | L40: 79.85 | M40: 80.65
C41: Индекс физического объема оборота розничной торговли | D41: % к предыдущему году в сопоставимых ценах | E41: 103.94 | F41: =F40/E40/F42*10000 -> 97.45041381 | G41: =G40/F40/G42*10000 -> 103.9938513 | H41: =H40/G40/H42*10000 -> 102.1077104 | I41: =I40/G40/I42*10000 -> 102.7043697 | J41: =J40/H40/J42*10000 -> 102.0046677 | K41: =K40/I40/K42*10000 -> 102.599467 | L41: =L40/J40/L42*10000 -> 101.9878889 | M41: =M40/K40/M42*10000 -> 102.6039652
C42: Индекс-дефлятор оборота розничной торговли | D42: % г/г | E42: 103.99 | F42: 103.06 | G42: 106 | H42: 104.1 | I42: 103.7 | J42: 104.2 | K42: 103.9 | L42: 104.1 | M42: 104
C43: Объем платных услуг населению | D43: млн.рублей | E43: 15.43 | F43: 14.55 | G43: 15.25 | H43: 16.13 | I43: 16.32 | J43: 17.02 | K43: 17.35 | L43: 17.96 | M43: 18.42
C44: Индекс физического объема платных услуг населению | D44: % к предыдущему году в сопоставимых ценах | E44: 99.9 | F44: =F43/E43/F45*10000 -> 92.19478331 | G44: =G43/F43/G45*10000 -> 101.0713564 | H44: =H43/G43/H45*10000 -> 102.1937119 | I44: =I43/G43/I45*10000 -> 102.8015307 | J44: =J43/H43/J45*10000 -> 101.8510318 | K44: =K43/I43/K45*10000 -> 102.0261752 | L44: =L43/J43/L45*10000 -> 101.7578729 | M44: =M43/K43/M45*10000 -> 101.985732
C45: Индекс-дефлятор объема платных услуг населению | D45: % г/г | E45: 104.34 | F45: 102.28 | G45: 103.7 | H45: 103.5 | I45: 104.1 | J45: 103.6 | K45: 104.2 | L45: 103.7 | M45: 104.1
C46: 6. Малое и среднее предпринимательство, включая микропредприятия
C47: Количество средних предприятий (на конец года) | D47: единиц | E47: - | F47: - | G47: -
D48: % к предыдущему году
C49: Среднесписочная численность работников средних предприятий (без внешних совместителей) | D49: чел. | E49: - | F49: - | G49: -
D50: % к предыдущему году
C51: Оборот средних предприятий | D51: млн. руб. | E51: - | F51: - | G51: -
D52: % к предыдущему году
C53: Количество малых предприятий, включая микропредприятия (на конец года) | D53: единиц | E53: 1 | F53: 1
D54: % к предыдущему году | E54: 100 | F54: 100
C55: Среднесписочная численность работников малых предприятий, включая микропредприятия (без внешних совместителей) | D55: чел.
D56: % к предыдущему году
C57: Оборот малых предприятий, включая микропредприятия | D57: млн. руб.
D58: % к предыдущему году
C59: Количество индивидуальный предпринимателей | D59: чел. | E59: 14 | F59: 12
D60: % к предыдущему году | E60: 73.7 | F60: 85.7
C61: Численность работников сферы индивидуального предпринимательства (включая самих индивидуальных предпринимателей) | D61: чел.
C62: Численность занятых в сфере малого и среднего предпринимательства (включая индивидуальных предпринимателей) | D62: чел.
D63: % к предыдущему году
C64: 7. Инвестиции
C65: Инвестиции в основной капитал (полный круг) | D65: млн. руб. | E65: * | F65: * | G65: *
C66: Индекс физического объема инвестиций в основной капитал | D66: % к предыдущему году в сопоставимых ценах
C67: Индекс-дефлятор | D67: % к предыдущему году
C68: 8. Финансы
C69: Доходы консолидированного бюджета муниципального образования | D69: млн. руб.
C70: Расходы консолидированного бюджета муниципального образования | D70: млн. руб.
C71: Дефицит(-),профицит(+) консолидированного бюджета | D71: млн.руб.
C72: 9. Денежные доходы и расходы населения
C73: Денежные доходы населения | D73: млн.руб. | E73: 137.91 | F73: 139.38 | G73: 149.82 | H73: 157.16 | I73: 157.58 | J73: 165.18 | K73: 166.14 | L73: 173.77 | M73: 175.33
C74: в том числе:
C75: оплата труда, включая скрытую заработную плату | D75: млн.руб. | E75: 68.98 | F75: 71.1 | G75: 78.28 | H75: 82.72 | I75: 82.95 | J75: 88.34 | K75: 88.93 | L75: 94.11 | M75: 95.22
C76: Реальные денежные доходы населения | D76: % к предыдущему году | E76: 99.8 | F76: 98.3 | G76: 102.2 | H76: 101 | I76: 101.3 | J76: 101.1 | K76: 101.4 | L76: 101.2 | M76: 101.5
C77: Реальные располагаемые денежные доходы населения | D77: % к предыдущему году | E77: 99.3 | F77: 97.3 | G77: 103.5 | H77: 101.2 | I77: 101.6 | J77: 101.4 | K77: 101.7 | L77: 101.4 | M77: 101.8
C78: Среднедушевые денежные доходы (в месяц) | D78: руб. | E78: =E73/E17/12*1000 -> 12532.71538 | F78: 12919.91101
C79: 10. Труд и занятость
C80: Численность рабочей силы | D80: тыс. чел
C81: Численность занятых в экономике | D81: тыс. чел
C82: Фонд начисленной заработной платы всех работников | D82: млн.руб. | E82: 66.91 | F82: 69.83 | G82: 78.14 | H82: 82.67 | I82: 82.83 | J82: 87.38 | K82: 87.88 | L82: 92.54 | M82: 93.24
D83: % к предыдущему году | E83: 108.3 | F83: =F82/E82*100 -> 104.3640711 | G83: =G82/F82*100 -> 111.9003294 | H83: =H82/G82*100 -> 105.7972869 | I83: =I82/G82*100 -> 106.0020476 | J83: =J82/H82*100 -> 105.6973509 | K83: =K82/I82*100 -> 106.0968248 | L83: =L82/J82*100 -> 105.9052415 | M83: =M82/K82*100 -> 106.0992262
C84: примечание: *конфидициальные данные; население 2018, 2019, (2020 на начало года) - данные статистики, 2020-2023 годы ставите прогнозные данные; по малому предпринимательству 2018-2020 годы данные Единого реестра субъектов малого и среднего предпринимательства, 2021 - 2023 годы ставите прогнозные данные.
